Cogmind - Beta 14 @@@ ROGUE MODE // 2024.10.31 @ 20:34:57 Player: Sandwich Result: Self-destructed Performance ------------- Evolutions (8) 4000 Regions Visited (30) 6000 Robots Destroyed (138) 690 Value Destroyed (10668) 10668 Prototype IDs (37) 740 Alien Tech Used (0) 0 Bonus (11371) 11371 TOTAL SCORE: 33469 Bonus ------- Triggered Max Security 1000 High Alert Combat Kills 473 Follower Combat Kills 3556 Entered Garrisons 2200 Used RIF Installer 4500 Aligned with FarCom 300 Friendly Fire -658 Cogmind --------- Core Integrity 862/1450 Matter 109/300 Energy 12/1200 System Corruption 10% Temperature Cool (0) Movement Core (3000) Ox59 Location -2/Testing Parts ------- > --- POWER (2) -------- (None) > --- PROPULSION (6) --- (None) > --- UTILITY (12) ----- 2N-1CE's Frost Array Huge Storage Unit Huge Storage Unit Advanced Energy Well Experimental Energy Well Improved Remote Force Field Relay Coupler [NC] (36) Relay Coupler [Swarmer] (49) Relay Coupler [Swarmer] (11) Relay Coupler [Sentry] (5) Relay Coupler [Hunter] (28) Relay Coupler [Heavy] (22) > --- WEAPON (3) ------- (None) > --- INVENTORY (25) --- Long-range Terrain Scanner Relay Coupler [NC] (48) Relay Coupler [Swarmer] (60) Relay Coupler [Swarmer] (42) Relay Coupler [Swarmer] (44) Relay Coupler [Swarmer] (66) Relay Coupler [Duelist] (25) Relay Coupler [Duelist] (33) Relay Coupler [Demolisher] (20) Relay Coupler [Demolisher] (29) Relay Coupler [Specialist] (26) Relay Coupler [Specialist] (27) Relay Coupler [Specialist] (29) Relay Coupler [Specialist] (23) Relay Coupler [Hunter] (28) Relay Coupler [Hunter] (19) Peak State ------------ > --- POWER ------------ Quantum Reactor Quantum Reactor > --- PROPULSION ------- Centrium Wheel High-density Centrium Wheel High-density Centrium Wheel High-density Centrium Wheel High-density Centrium Wheel > --- UTILITY ---------- 2N-1CE's Frost Array Huge Storage Unit Relay Coupler [NC] Relay Coupler [Swarmer] Relay Coupler [Swarmer] Relay Coupler [Grunt] Relay Coupler [Grunt] Relay Coupler [Duelist] Relay Coupler [Sentry] Relay Coupler [Specialist] Relay Coupler [Hunter] Relay Coupler [Heavy] > --- WEAPON ----------- Hardcell Cannon Linear Accelerator Improved Remote Datajack > --- INVENTORY -------- Particle Reactor Huge Storage Unit Advanced Energy Well Experimental Energy Well Long-range Terrain Scanner Improved Remote Shield Improved Remote Force Field Relay Coupler [NC] Relay Coupler [Swarmer] Relay Coupler [Swarmer] Relay Coupler [Swarmer] Relay Coupler [Swarmer] Relay Coupler [Duelist] Relay Coupler [Duelist] Relay Coupler [Demolisher] Relay Coupler [Demolisher] Relay Coupler [Specialist] Relay Coupler [Specialist] Relay Coupler [Specialist] Relay Coupler [Specialist] Relay Coupler [Hunter] Relay Coupler [Hunter] Relay Coupler [Hunter] Improved Remote Datajack Enhanced Force Lance [Rating: 141] Favorites ----------- Power Improved Quantum Reactor Engine Heavy Deuterium Engine Power Core Light Nuclear Core Reactor Improved Quantum Reactor Propulsion High-density Centrium Wheel Treads Light Treads Leg Flexi-carbon Leg Wheel High-density Centrium Wheel Flight Unit Surge Thruster Utility Relay Coupler [Swarmer] Device Improved Heat Sink Storage Huge Storage Unit Processor Advanced Targeting Computer Hackware Relay Coupler [Swarmer] Protection Centrium Light Armor Plating Weapon Remote Datajack Energy Gun AWS/Thermal Ballistic Gun Assault Rifle Ballistic Cannon Heavy Linear Accelerator Launcher Heavy Rocket Launcher Special Weapon Remote Datajack Slashing Weapon Axe Piercing Weapon Enhanced Force Lance Special Melee Weapon Improved Datajack Build | -11 -10 -10 -9 -9 -9 -8 -8 -8 -8 -8 -7 -7 -7 -7 -6 -6 -6 -6 -5 -5 -4 -4 -3 -3 -3 -3 -3 -3 -2 -2 ------- Run | Yrd Mat Min Mat Min Exi Min Mat Gar Mat Gar Fac Gar Fac Gar Fac Gar Fac Gar Fac Gar Fac Gar Res Gar Res Gar Res Gar Res Tes Slots Evolved 16 | . . . 2 . . . 2 . . . 2 . . . 2 . . . 2 . 2 . 2 . . . . . 2 . Power 1 | . . . . . . . . . . . . . . . . . . . 1 . . . . . . . . . . . Propulsion 4 | . . . . . . . . . . . . . . . 2 . . . . . 1 . 1 . . . . . . . Utility 10 | . . . 1 . . . 2 . . . 2 . . . . . . . 1 . 1 . 1 . . . . . 2 . Weapon 1 | . . . 1 . . . . . . . . . . . . . . . . . . . . . . . . . . . Parts Attached 247 | 6 11 1 8 1 . 4 2 26 11 7 15 8 4 32 4 19 2 5 4 9 6 3 9 6 . 10 6 6 10 12 Power 25 | 1 2 . 1 . . . . 4 . 1 1 . . 2 . 2 1 1 . 2 1 . . . . . 3 . 2 1 Engine 11 | 1 2 . 1 . . . . 2 . . 1 . . . . 2 1 1 . . . . . . . . . . . . Core 6 | . . . . . . . . 2 . 1 . . . 2 . . . . . 1 . . . . . . . . . . Reactor 8 | . . . . . . . . . . . . . . . . . . . . 1 1 . . . . . 3 . 2 1 Propulsion 44 | 2 2 . 1 . . 1 1 4 2 3 3 2 . 7 2 4 . . . . 2 1 4 . . 1 . 1 1 . Treads 13 | 1 1 . 1 . . . . 4 1 2 . . . . . 1 . . . . 1 1 . . . . . . . . Leg 6 | . . . . . . . . . . . . . . 2 1 3 . . . . . . . . . . . . . . Wheel 20 | 1 1 . . . . 1 1 . 1 1 3 2 . . 1 . . . . . 1 . 4 . . 1 . 1 1 . Hover . | . . . . . . . . . . . . . . . . . . . . . . . . . . . . . . . Flight 5 | . . . . . . . . . . . . . . 5 . . . . . . . . . . . . . . . . Utility 113 | 1 4 1 2 1 . 1 1 6 4 3 8 2 3 9 2 10 1 3 1 5 3 2 5 4 . 8 2 5 7 9 Device 25 | . 2 1 . 1 . . 1 3 1 1 1 . 1 2 . 1 . . 1 . . . 1 . . 1 1 1 2 3 Storage 13 | 1 1 . . . . . . . 1 . 1 . . 1 . . . . . . . . 2 . . 1 . . . 5 Processor 7 | . 1 . . . . 1 . 3 . . . . . . . . . . . . 1 . . . . . . . 1 . Hackware 57 | . . . . . . . . . 2 2 2 2 2 6 2 8 1 2 . 5 2 2 1 3 . 5 1 4 4 1 Protection 11 | . . . 2 . . . . . . . 4 . . . . 1 . 1 . . . . 1 1 . 1 . . . . Artifact . | . . . . . . . . . . . . . . . . . . . . . . . . . . . . . . . Weapon 65 | 2 3 . 4 . . 2 . 12 5 . 3 4 1 14 . 3 . 1 3 2 . . . 2 . 1 1 . . 2 Energy Gun 10 | . . . . . . . . 3 3 . 2 1 . 1 . . . . . . . . . . . . . . . . Energy Cannon . | . . . . . . . . . . . . . . . . . . . . . . . . . . . . . . . Ballistic Gun 27 | 2 3 . 4 . . 2 . 9 1 . . . . 5 . 1 . . . . . . . . . . . . . . Ballistic Cannon 6 | . . . . . . . . . . . . . . . . 1 . . 1 1 . . . 2 . 1 . . . . Launcher 2 | . . . . . . . . . . . . . . . . . . . 2 . . . . . . . . . . . Special Weapon 11 | . . . . . . . . . . . 1 1 1 3 . 1 . 1 . 1 . . . . . . 1 . . 1 Impact Weapon . | . . . . . . . . . . . . . . . . . . . . . . . . . . . . . . . Slashing Weapon 7 | . . . . . . . . . . . . 2 . 5 . . . . . . . . . . . . . . . . Piercing Weapon 1 | . . . . . . . . . . . . . . . . . . . . . . . . . . . . . . 1 Special Melee Weapon 1 | . . . . . . . . . 1 . . . . . . . . . . . . . . . . . . . . . Unidentified Prototypes 12 | . . . . . . . . . 1 . 1 . . . . . . 1 . 1 1 . 3 . . . 1 . . 3 Corrupted Parts 1 | . . . . . . . . . . . . . . . . . . . . 1 . . . . . . . . . . System Corruption 5 | . . . . . . . . . . . . . . . . . . . . 5 . . . . . . . . . . Parts Lost 70 | . 1 1 1 . . 4 7 10 2 . 2 3 . 17 . 3 . 3 . . . . . 1 . . 2 . . 13 Power 7 | . . . . . . . 1 1 . . . . . 1 . 1 . 1 . . . . . . . . 1 . . 1 Propulsion 19 | . 1 . . . . 1 1 3 . . 1 2 . 5 . 1 . . . . . . . . . . . . . 4 Utility 17 | . . 1 . . . 1 2 2 . . 1 . . 4 . 1 . 1 . . . . . . . . . . . 4 Weapon 27 | . . . 1 . . 2 3 4 2 . . 1 . 7 . . . 1 . . . . . 1 . . 1 . . 4 Highest Loss Streak 7 | . 1 1 1 . . 3 7 5 2 . 2 2 . 7 . 3 . 2 . . . . . 1 . . 1 . . 5 To Critical Strikes . | . . . . . . . . . . . . . . . . . . . . . . . . . . . . . . . Average Slot Usage (%) 88 | . 98 99 99 100 100 90 82 95 96 89 89 88 92 86 91 83 79 76 74 79 80 82 84 83 85 89 94 94 94 80 Engine 4 | . 14 14 11 11 11 11 9 6 . . 5 7 7 1 . 5 6 4 5 1 . . . . . . . . . . Core 2 | . . . . . . . . 1 9 9 1 . . 4 6 . . . . 3 5 5 4 4 4 4 . . . . Reactor 1 | . . . . . . . . . . . . . . . . . . . . 4 5 5 4 4 4 4 8 9 8 5 Treads 4 | . 14 14 11 11 11 11 9 10 17 6 . . . . . 2 6 6 5 5 8 10 4 . . . . . . . Leg 2 | . . . . . . . . . . . . . . 9 19 7 . . . . . . . . . . . . . . Wheel 10 | . 13 14 11 11 11 11 9 4 . 11 14 13 15 3 . 6 6 6 5 5 5 5 13 23 23 22 23 22 21 17 Device 6 | . 11 13 11 11 11 11 11 8 9 14 12 7 7 6 11 6 5 . 4 1 . . . . . . . . 6 3 Storage 7 | . 14 14 11 11 11 11 9 9 9 9 7 7 7 6 6 6 6 6 5 5 5 5 4 4 4 8 9 9 4 5 Processor 2 | . 2 . . . . . 8 27 14 3 . . . . . . . . . . . . . . . . . . 3 . Hackware 23 | . . . . . . . . . 12 18 24 28 33 31 26 31 33 36 29 32 33 34 37 32 33 31 32 32 35 37 Protection 2 | . . . 10 11 11 1 . . . . 7 8 3 . . . . 1 5 5 5 5 3 4 4 3 4 3 . . Energy Gun 2 | . . . . . . . . 1 12 18 11 4 7 1 . . . . . . . . . . . . . . . . Ballistic Gun 7 | . 28 28 33 33 33 32 26 25 10 . . . . 8 13 2 . . . . . . . . . . . . . . Ballistic Cannon 2 | . . . . . . . . . . . . . . . . 4 6 6 4 5 5 5 4 3 4 5 9 9 8 4 Special Weapon 3 | . . . . . . . . . . . 1 5 5 5 6 5 6 5 5 4 5 5 4 4 4 4 3 4 4 3 Peak Build Rating 141 | 6 10 10 15 15 15 16 17 28 43 46 58 57 59 58 57 82 84 84 85 99 107 102 129 128 109 126 135 135 138 141 Average Rating 66 | 4 8 9 13 14 14 14 16 24 35 45 54 52 58 46 54 71 81 77 84 94 100 101 114 111 109 117 128 131 135 113 On Entrance 64 | . 6 9 10 15 14 15 16 9 28 43 46 54 57 57 50 57 82 76 84 85 97 99 102 128 109 109 126 135 132 134 Naked Turns . | . . . . . . . . . . . . . . . . . . . . . . . . . . . . . . . Heaviest Build 175 | 12 30 30 38 39 39 39 37 37 97 98 114 108 108 104 100 134 132 122 123 144 144 144 146 156 141 154 175 175 160 148 Greatest Support 108 | 20 10 10 10 10 10 16 16 40 43 20 26 26 22 40 55 28 28 28 28 28 28 28 108 108 108 108 108 108 108 96 Greatest Overweight (x) 29 | 1 2 2 3 3 3 3 2 2 9 9 10 10 4 29 3 4 4 4 4 5 5 5 5 1 1 1 1 1 1 2 Average Overweight (x) 2 | . 1 2 3 3 3 2 1 1 . 6 4 4 4 2 1 3 4 3 3 4 5 5 2 1 1 1 1 1 1 1 Largest Inventory Capacity 25 | 8 15 15 15 15 15 15 15 15 25 25 25 25 25 25 25 25 25 25 25 25 25 25 25 25 25 25 25 25 25 25 Average Capacity 22 | 6 9 15 15 15 15 15 15 15 15 25 25 25 25 23 25 25 25 25 25 25 25 25 25 25 25 25 25 25 25 25 Most Carried 25 | 3 10 10 15 15 15 15 15 15 17 25 25 25 25 25 25 25 25 25 25 25 25 25 25 25 24 25 25 25 25 25 Average Carried 20 | 1 7 9 14 15 14 13 13 13 14 23 24 22 24 18 22 24 24 24 25 24 24 24 24 24 24 24 24 24 23 23 Final Capacity 25 | 8 15 15 15 15 15 15 15 15 25 25 25 25 25 25 25 25 25 25 25 25 25 25 25 25 25 25 25 25 25 25 Final Carried 25 | 3 9 10 15 15 15 13 15 13 17 25 25 25 24 20 25 25 24 25 25 25 24 25 25 24 24 25 25 25 24 16 Class Distribution -------------------- 42% | Botlord-Skirmisher 21% | Bothacker-Skirmisher 6% | Bothacker-Mutant 6% | Mutant 6% | Botlord-Mutant 5% | Tank 4% | Bothacker-Gunner 3% | Gunner Dominant Class ---------------- Mutant | -10/Materials Mutant | -10/Mines Tank | -9/Materials Tank | -9/Mines Tank | -9/Exiles Skirmisher | -8/Mines Skirmisher | -8/Materials Bothacker-Gunner | -8/Garrison Bothacker-Skirmisher | -8/Materials Bothacker-Skirmisher | -8/Garrison Bothacker-Skirmisher | -7/Factory Bothacker-Mutant | -7/Garrison Bothacker-Skirmisher | -7/Factory Bothacker-Skirmisher | -7/Garrison Botlord-Skirmisher | -6/Factory Botlord-Skirmisher | -6/Garrison Botlord-Skirmisher | -6/Factory Botlord-Skirmisher | -6/Garrison Botlord-Skirmisher | -5/Factory Botlord-Skirmisher | -5/Garrison Botlord-Skirmisher | -4/Factory Botlord-Skirmisher | -4/Garrison Botlord-Skirmisher | -3/Research Botlord-Mutant | -3/Garrison Botlord-Mutant | -3/Research Botlord-Mutant | -3/Garrison Botlord-Skirmisher | -3/Research Botlord-Skirmisher | -3/Garrison Botlord-Skirmisher | -2/Research Botlord-Skirmisher | -2/Testing Resources | -11 -10 -10 -9 -9 -9 -8 -8 -8 -8 -8 -7 -7 -7 -7 -6 -6 -6 -6 -5 -5 -4 -4 -3 -3 -3 -3 -3 -3 -2 -2 ----------- Run | Yrd Mat Min Mat Min Exi Min Mat Gar Mat Gar Fac Gar Fac Gar Fac Gar Fac Gar Fac Gar Fac Gar Res Gar Res Gar Res Gar Res Tes Matter Collected 6982 | 164 279 103 256 19 . 205 . 479 121 98 155 115 60 507 28 749 17 462 6 667 200 161 . 378 . 555 143 766 242 47 Remotely . | . . . . . . . . . . . . . . . . . . . . . . . . . . . . . . . Salvage Created 5505 | . 476 182 212 . . 275 109 730 322 841 217 151 244 432 28 247 17 61 6 145 139 92 . 32 . 188 . 98 64 197 Parts 276 | . 31 9 14 . . 17 5 29 22 42 11 6 14 17 1 17 2 1 2 4 2 6 . . . 14 . 7 . 3 Haulers Intercepted . | . . . . . . . . . . . . . . . . . . . . . . . . . . . . . . . Recyclers Shooed 3 | . . . . . . 1 . . . . . . . . . . . . . . . . . . . . 2 . . . Parts Field Recycled . | . . . . . . . . . . . . . . . . . . . . . . . . . . . . . . . Retrieved Matter . | . . . . . . . . . . . . . . . . . . . . . . . . . . . . . . . Parts Self-Destructed . | . . . . . . . . . . . . . . . . . . . . . . . . . . . . . . . Prevented . | . . . . . . . . . . . . . . . . . . . . . . . . . . . . . . . Kills | -11 -10 -10 -9 -9 -9 -8 -8 -8 -8 -8 -7 -7 -7 -7 -6 -6 -6 -6 -5 -5 -4 -4 -3 -3 -3 -3 -3 -3 -2 -2 ------- Run | Yrd Mat Min Mat Min Exi Min Mat Gar Mat Gar Fac Gar Fac Gar Fac Gar Fac Gar Fac Gar Fac Gar Res Gar Res Gar Res Gar Res Tes Combat Hostiles Destroyed 124 | . 10 4 6 . . 7 2 17 4 17 4 5 4 8 . 7 . 3 . 6 3 1 . 5 . 4 . 2 1 4 Melee 10 | . . . . . . . . . . . . 1 . 4 . 1 . . . . . . . . . . . . . 4 Guns 85 | . 10 4 6 . . 7 2 17 4 17 3 4 4 4 . 3 . . . . . . . . . . . . . . Cannons 27 | . . . . . . . . . . . . . . . . 3 . 3 . 6 3 . . 5 . 4 . 2 1 . AOE 1 | . . . . . . . . . . . . . . . . . . . . . . 1 . . . . . . . . Classes Destroyed 16 | . 4 . 1 . . 2 . . 1 1 . 1 1 . . 1 . 1 . . . 1 . 1 . . . . . 1 Worker 3 | . . . . . . . . . 2 . . . 1 . . . . . . . . . . . . . . . . . Builder 2 | . . . . . . 1 . . . . . . . . . . . . 1 . . . . . . . . . . . Recycler 3 | . 2 . . . . . . . 1 . . . . . . . . . . . . . . . . . . . . . Watcher 9 | . 2 . 1 . . . . . 1 . 1 . 1 . 1 . 1 . . . . . . . . . . 1 . . Swarmer 21 | . 5 . 3 . . 3 . 4 1 . . 3 1 . . . . . . . . . . . . 1 . . . . Saboteur 2 | . . . . . . . . . . . . . . . . 1 . . . . . . . . . . . . . 1 Grunt 48 | . 5 4 1 . . 3 1 10 2 9 . 1 . 4 . 2 . 2 . 3 . . . . . . . . . 1 Brawler 2 | . . . . . . . . . . . . . 1 . . . . . . . 1 . . . . . . . . . Duelist 1 | . . . . . . . . . . . . 1 . . . . . . . . . . . . . . . . . . Sentry 16 | . . . 2 . . . 1 3 1 4 1 . 1 1 . 1 . . . . . . . . . . . . 1 . Specialist 1 | . . . . . . . . . . . . . . . . . . . . . . . . . . . . . . 1 Hunter 8 | . . . . . . 1 . . . 1 1 . 1 2 . . . . . 1 . . . . . 1 . . . . Programmer 20 | . . . . . . . . . . 3 2 . . 1 . 3 . . . 2 2 1 . . . 3 . 2 . 1 Striker 1 | . . . . . . . . . . . . . . . . . . 1 . . . . . . . . . . . . Executioner 1 | . . . . . . . . . . . . . . . . . . . . . . 1 . . . . . . . . Assembled 5 | . . . . . . . . . . . . . . . . . . . . . . . . 5 . . . . . . Best Kill Streak 5 | . 3 2 2 . . 4 2 5 5 3 1 3 2 3 1 2 1 1 1 2 1 1 . 5 . 3 . 1 1 3 Combat Bots Only 5 | . 3 2 2 . . 3 2 5 3 3 1 3 1 3 . 2 . 1 . 2 1 1 . 5 . 3 . 1 1 3 Max Kills in Single Turn 2 | . 1 1 1 . . 1 1 2 2 2 1 1 1 1 1 1 1 1 1 1 1 1 . 1 . 1 . 1 1 1 Gunslinging 1 | . . . . . . . . 1 . . . . . . . . . . . . . . . . . . . . . . Exploded 1 | . . . . . . . . . . . . . . . . . . . . . . 1 . . . . . . . . Melee 1 | . . . . . . . . . . . . 1 . 1 . 1 . . . . . . . . . . . . . 1 Uniques/NPCs Destroyed . | . . . . . . . . . . . . . . . . . . . . . . . . . . . . . . . Combat | -11 -10 -10 -9 -9 -9 -8 -8 -8 -8 -8 -7 -7 -7 -7 -6 -6 -6 -6 -5 -5 -4 -4 -3 -3 -3 -3 -3 -3 -2 -2 -------- Run | Yrd Mat Min Mat Min Exi Min Mat Gar Mat Gar Fac Gar Fac Gar Fac Gar Fac Gar Fac Gar Fac Gar Res Gar Res Gar Res Gar Res Tes Hostile Shots Fired 1235 | . 62 16 28 . . 56 50 124 36 34 44 31 18 241 10 68 2 24 . 32 18 55 6 34 . 44 10 47 17 128 Missed 394 | . 16 4 7 . . 12 14 31 14 10 12 11 8 109 4 22 . 7 . 11 9 15 4 10 . 15 1 13 1 34 Damage Taken 13918 | . 509 176 255 . . 561 581 1292 259 360 265 449 118 1752 70 621 93 411 . 393 415 955 50 529 . 498 225 628 279 2174 Core 2310 | . 84 29 35 . . 74 129 187 35 91 46 80 . 512 . 100 20 46 . 58 . 67 . 29 . 29 24 47 . 588 Absorbed by Shields 719 | . . . . . . . . . . . . . . . . 58 . 8 . . 5 56 . 78 . 211 . 25 129 149 Redirected to Shielding 27 | . . . . . . . . . . . 19 8 . . . . . . . . . . . . . . . . . . Core Remaining (%) 67 | 100 . 54 . . . 72 . . . 19 . . . 8 . . . 80 . 94 . 94 . . . . . 90 . . Volleys Fired 626 | . 41 13 22 . . 22 4 69 10 40 7 10 4 27 4 56 2 34 1 44 17 15 4 25 1 56 8 54 16 20 Largest 3 | . 2 2 3 . . 3 3 3 3 1 1 1 1 2 2 3 1 1 1 1 1 1 1 1 1 2 2 2 2 2 Hottest 131 | . 40 40 63 . . 66 66 111 101 55 55 5 5 53 53 83 83 83 83 83 83 83 83 83 5 131 131 131 131 131 Shots Fired 1067 | . 82 26 65 . . 63 12 159 27 92 33 15 20 50 7 77 2 33 1 45 17 17 4 25 1 64 10 76 20 24 Gun 651 | . 82 26 65 . . 63 12 159 27 92 32 5 16 38 6 28 . . . . . . . . . . . . . . Cannon 231 | . . . . . . . . . . . . . . . . 18 1 24 1 31 5 5 1 16 . 45 5 61 8 10 Launcher . | . . . . . . . . . . . . . . . . . . . . . . . . . . . . . . . Special 185 | . . . . . . . . . . . 1 10 4 12 1 31 1 9 . 14 12 12 3 9 1 19 5 15 12 14 Kinetic 677 | . 82 26 65 . . 63 12 125 7 . . . . 32 6 46 1 24 1 31 5 5 1 16 . 45 5 61 8 10 Thermal 205 | . . . . . . . . 34 20 92 32 5 16 6 . . . . . . . . . . . . . . . . Explosive . | . . . . . . . . . . . . . . . . . . . . . . . . . . . . . . . Electromagnetic . | . . . . . . . . . . . . . . . . . . . . . . . . . . . . . . . Robot Hit Streak 53 | . 12 16 5 . . 7 6 53 16 20 11 4 9 8 2 12 4 8 3 9 5 5 2 3 3 11 5 8 9 7 Robot Miss Streak 5 | . 4 3 3 . . 5 2 1 3 1 3 2 2 2 1 2 . 2 . 4 2 2 1 2 . 4 1 3 2 4 Penetration Max . | . . . . . . . . . . . . . . . . . . . . . . . . . . . . . . . Secondary Targets 9 | . 2 . . . . 1 . 5 . . . . . . . 1 . . . . . . . . . . . . . . Max Gunslinging Chain 2 | . 1 . . . . 1 . 2 . . . . . . . 1 . . . . . . . . . . . . . . Autonomous 116 | . . . . . . . . . 10 52 26 5 16 7 . . . . . . . . . . . . . . . . Shots Hit Robots 708 | . 58 20 36 . . 40 7 114 27 64 24 11 15 42 4 56 2 16 1 25 12 10 2 11 1 29 7 35 14 25 Core Hits 242 | . 30 10 15 . . 19 5 45 10 26 4 5 8 15 2 10 1 2 . 6 2 1 . 4 . 8 1 8 2 3 Critical Kills . | . . . . . . . . . . . . . . . . . . . . . . . . . . . . . . . Critical Parts Destroyed 1 | . . . . . . 1 . . . . . . . . . . . . . . . . . . . . . . . . Critical Strikes 15 | . . . . . . 1 . . . . . . . 2 . 3 . 1 . 3 . . . . . . 1 1 1 2 Destroy 1 | . . . . . . 1 . . . . . . . . . . . . . . . . . . . . . . . . Blast 10 | . . . . . . . . . . . . . . . . 3 . 1 . 3 . . . . . . 1 1 1 . Sever 2 | . . . . . . . . . . . . . . 2 . . . . . . . . . . . . . . . . Impale 2 | . . . . . . . . . . . . . . . . . . . . . . . . . . . . . . 2 Melee Attacks 46 | . . . . . . . . . 5 . . 6 . 23 . . . . . . . . . . . . . . . 12 Impact . | . . . . . . . . . . . . . . . . . . . . . . . . . . . . . . . Slashing 29 | . . . . . . . . . . . . 6 . 23 . . . . . . . . . . . . . . . . Piercing 12 | . . . . . . . . . . . . . . . . . . . . . . . . . . . . . . 12 Sneak Attacks 1 | . . . . . . . . . . . . 1 . . . . . . . . . . . . . . . . . . Combat Hostiles 1 | . . . . . . . . . . . . 1 . . . . . . . . . . . . . . . . . . Follow-up Attacks 1 | . . . . . . . . . . . . . . 1 . . . . . . . . . . . . . . . . Damage Inflicted 13857 | . 506 259 528 . . 505 84 1284 520 1616 666 238 348 698 58 1142 81 530 75 1251 378 75 . 232 . 742 118 1082 174 667 Guns 7401 | . 506 259 528 . . 505 84 1284 520 1616 666 123 348 399 58 505 . . . . . . . . . . . . . . Cannons 5602 | . . . . . . . . . . . . . . . . 637 81 530 75 1251 378 75 . 232 . 742 118 1082 174 227 Explosions . | . . . . . . . . . . . . . . . . . . . . . . . . . . . . . . . Melee 854 | . . . . . . . . . . . . 115 . 299 . . . . . . . . . . . . . . . 440 Ramming . | . . . . . . . . . . . . . . . . . . . . . . . . . . . . . . . Kinetic 9488 | . 506 259 528 . . 505 84 1132 60 . . . . 249 58 1142 81 530 75 1251 378 75 . 232 . 742 118 1082 174 227 Thermal 3515 | . . . . . . . . 152 460 1616 666 123 348 150 . . . . . . . . . . . . . . . . Explosive . | . . . . . . . . . . . . . . . . . . . . . . . . . . . . . . . Electromagnetic . | . . . . . . . . . . . . . . . . . . . . . . . . . . . . . . . Impact . | . . . . . . . . . . . . . . . . . . . . . . . . . . . . . . . Slashing 414 | . . . . . . . . . . . . 115 . 299 . . . . . . . . . . . . . . . . Piercing 440 | . . . . . . . . . . . . . . . . . . . . . . . . . . . . . . 440 Highest Corruption 12 | . . . 1 1 1 1 . . . 1 . . 2 7 . 4 4 4 . 5 2 3 . 4 4 9 9 12 . 10 Average Corruption 4 | . . . 1 1 1 1 . . . 1 . . 2 5 . 3 4 4 . 5 2 2 . 4 4 4 9 10 . 5 Corruption Purged . | . . . . . . . . . . . . . . . . . . . . . . . . . . . . . . . Corruption Blocked . | . . . . . . . . . . . . . . . . . . . . . . . . . . . . . . . Effects 264 | . . . 2 3 2 2 . . . 7 . . 5 51 . 33 5 23 . 29 2 14 . 4 3 29 6 42 . 2 Message Errors 58 | . . . 1 1 . . . . . . . . 2 13 . 5 2 4 . 5 1 5 . 1 . 3 2 13 . . Matter Fused 75 | . . . . 1 1 . . . . 4 . . . 11 . 6 . 10 . 13 . 3 . . . 7 . 18 . 1 Heat Flow Errors 30 | . . . . . . . . . . . . . . 6 . 3 . 2 . 2 . 3 . 3 . 7 1 3 . . Energy Discharges 32 | . . . 1 . 1 . . . . 1 . . 1 8 . 5 2 4 . 3 1 1 . . . 1 2 1 . . Parts Rejected 3 | . . . . . . . . . . . . . . . . . . . . 1 . . . . . 1 . 1 . . Parts Fused 4 | . . . . . . . . . . . . . . . . 1 . . . . . . . . 1 2 . . . . Data Loss (minor) 30 | . . . . 1 . 1 . . . . . . . 9 . 4 1 1 . 2 . . . . . 4 . 6 . 1 Data Loss (major) 10 | . . . . . . . . . . . . . 2 1 . 3 . 1 . 1 . . . . 1 1 . . . . Misfires 9 | . . . . . . . . . . 1 . . . 2 . 3 . . . 1 . 2 . . . . . . . . Alerts 8 | . . . . . . . . . . . . . . 1 . 3 . . . 1 . . . . 1 1 1 . . . Weapon Failures 5 | . . . . . . 1 . . . 1 . . . . . . . 1 . . . . . . . 2 . . . . Overload Shots . | . . . . . . . . . . . . . . . . . . . . . . . . . . . . . . . Overflow Damage 680 | . . . . . . . . . . . . 39 . 5 . 27 . 4 55 192 70 . . 11 . 71 11 76 . 119 Projectiles 547 | . . . . . . . . . . . . . . . . 27 . 4 55 192 70 . . 11 . 71 11 76 . 30 Explosions . | . . . . . . . . . . . . . . . . . . . . . . . . . . . . . . . Melee 133 | . . . . . . . . . . . . 39 . 5 . . . . . . . . . . . . . . . 89 Knockbacks 38 | . . . . . . . . . . . . . . . . 3 . 4 . 6 1 . . 1 . 8 2 10 1 2 Impact . | . . . . . . . . . . . . . . . . . . . . . . . . . . . . . . . Kinetic 37 | . . . . . . . . . . . . . . . . 3 . 4 . 6 1 . . 1 . 7 2 10 1 2 Secondary 1 | . . . . . . . . . . . . . . . . . . . . . . . . . . 1 . . . . Self-Inflicted Damage . | . . . . . . . . . . . . . . . . . . . . . . . . . . . . . . . Shots . | . . . . . . . . . . . . . . . . . . . . . . . . . . . . . . . Rammed . | . . . . . . . . . . . . . . . . . . . . . . . . . . . . . . . Targets Rammed . | . . . . . . . . . . . . . . . . . . . . . . . . . . . . . . . Kicked . | . . . . . . . . . . . . . . . . . . . . . . . . . . . . . . . Crushed . | . . . . . . . . . . . . . . . . . . . . . . . . . . . . . . . Highest Temperature 263 | . 17 6 13 . . 4 . 64 6 . . . . 263 . 234 14 140 20 236 40 216 14 196 . 260 257 207 72 126 Average Temperature 59 | . 7 3 13 . . 4 . 18 5 . . . . 87 . 65 10 23 15 42 18 61 10 33 . 104 81 84 31 50 Received Heat Transfer 2861 | . 177 120 69 . . 234 333 639 117 99 66 135 21 225 . 35 9 75 . 63 . 61 9 128 . 42 46 13 15 130 Effects 1 | . . . . . . . . . . . . . . 1 . . . . . . . . . . . . . . . . Energy Bleed 1 | . . . . . . . . . . . . . . 1 . . . . . . . . . . . . . . . . Siege Activations . | . . . . . . . . . . . . . . . . . . . . . . . . . . . . . . . Robots Corrupted . | . . . . . . . . . . . . . . . . . . . . . . . . . . . . . . . Combat Hostiles . | . . . . . . . . . . . . . . . . . . . . . . . . . . . . . . . Parts Fried . | . . . . . . . . . . . . . . . . . . . . . . . . . . . . . . . Impact Corruptions . | . . . . . . . . . . . . . . . . . . . . . . . . . . . . . . . Robots Melted 1 | . . . . . . . . . . . 1 . . . . . . . . . . . . . . . . . . . Combat Hostiles 1 | . . . . . . . . . . . 1 . . . . . . . . . . . . . . . . . . . Parts Melted 10 | . . . 1 . . . . . . 3 6 . . . . . . . . . . . . . . . . . . . Heat Transferred 4785 | . . . . . . . . 370 703 2084 851 148 444 185 . . . . . . . . . . . . . . . . Parts Sabotaged 4 | . . . . . . . . . . . . . . . . . . . . . . . . . . . . . . 4 Parts Stolen . | . . . . . . . . . . . . . . . . . . . . . . . . . . . . . . . Parts Stripped . | . . . . . . . . . . . . . . . . . . . . . . . . . . . . . . . Power Chain Reactions . | . . . . . . . . . . . . . . . . . . . . . . . . . . . . . . . Alert | -11 -10 -10 -9 -9 -9 -8 -8 -8 -8 -8 -7 -7 -7 -7 -6 -6 -6 -6 -5 -5 -4 -4 -3 -3 -3 -3 -3 -3 -2 -2 ------- Run | Yrd Mat Min Mat Min Exi Min Mat Gar Mat Gar Fac Gar Fac Gar Fac Gar Fac Gar Fac Gar Fac Gar Res Gar Res Gar Res Gar Res Tes Peak Influence 1615 | . 309 167 553 171 . 135 192 627 353 731 398 280 163 330 172 424 233 179 99 296 180 296 188 319 208 493 285 351 141 1615 Initial 383 | . . 65 . 171 . . 52 92 305 172 383 28 147 . 172 1 222 44 93 . 155 25 156 141 179 156 276 213 141 1 Average 205 | . 159 73 276 129 . 72 80 341 281 457 209 199 112 141 86 174 216 100 70 113 122 201 171 264 190 265 265 232 46 1555 Maximum Alert Level 5 | . 1 . 2 . . . . 2 1 3 1 1 . 1 . 2 1 . . 1 . 1 . 1 1 2 1 1 . 5 Low Security (%) 59 | 100 75 100 29 100 . 100 100 23 8 10 68 26 100 63 100 56 4 100 100 95 100 25 100 13 90 37 . 29 100 . Level 1 31 | . 24 . 43 . . . . 34 91 16 31 73 . 36 . 34 95 . . 4 . 74 . 86 9 50 100 70 . . Level 2 8 | . . . 27 . . . . 42 . 67 . . . . . 8 . . . . . . . . . 11 . . . . Level 3 . | . . . . . . . . . . 4 . . . . . . . . . . . . . . . . . . . . Level 4 . | . . . . . . . . . . . . . . . . . . . . . . . . . . . . . . . Level 5 . | . . . . . . . . . . . . . . . . . . . . . . . . . . . . . . . High Security . | . . . . . . . . . . . . . . . . . . . . . . . . . . . . . . . Max Security 1 | . . . . . . . . . . . . . . . . . . . . . . . . . . . . . . 99 Squads Dispatched 28 | . 2 . 1 . . . 1 . 1 . 3 . 1 . 1 . 1 . . . 3 . . . . . . . 2 12 Investigation 3 | . 1 . . . . . . . 1 . 1 . . . . . . . . . . . . . . . . . . . Extermination 4 | . . . . . . . . . . . 2 . . . 1 . . . . . . . . . . . . . 1 . Reinforcement 6 | . 1 . 1 . . . . . . . . . 1 . . . 1 . . . 1 . . . . . . . 1 . Assault 12 | . . . . . . . . . . . . . . . . . . . . . . . . . . . . . . 12 Garrison 3 | . . . . . . . 1 . . . . . . . . . . . . . 2 . . . . . . . . . Intercept . | . . . . . . . . . . . . . . . . . . . . . . . . . . . . . . . Searches Triggered . | . . . . . . . . . . . . . . . . . . . . . . . . . . . . . . . Construction Impeded . | . . . . . . . . . . . . . . . . . . . . . . . . . . . . . . . Haulers Reinforced . | . . . . . . . . . . . . . . . . . . . . . . . . . . . . . . . Active Scanning Responses . | . . . . . . . . . . . . . . . . . . . . . . . . . . . . . . . Cargo Convoy Interrupts . | . . . . . . . . . . . . . . . . . . . . . . . . . . . . . . . Alert ID Control Effect 56 | . . . . . . . . . . . . . 2 2 . 5 . 3 . 6 9 3 . 4 . 6 2 4 6 4 Stealth | -11 -10 -10 -9 -9 -9 -8 -8 -8 -8 -8 -7 -7 -7 -7 -6 -6 -6 -6 -5 -5 -4 -4 -3 -3 -3 -3 -3 -3 -2 -2 --------- Run | Yrd Mat Min Mat Min Exi Min Mat Gar Mat Gar Fac Gar Fac Gar Fac Gar Fac Gar Fac Gar Fac Gar Res Gar Res Gar Res Gar Res Tes Distress Signals 14 | . 1 . 4 . . . 1 . 4 . . . . 1 1 . 1 . . . . . . . . . . . 1 . Communications Jammed 48 | . . . . . . . . . . . . . . . . . . . . . . . . . . . . . 10 38 Distress Signals 48 | . . . . . . . . . . . . . . . . . . . . . . . . . . . . . 10 38 Times Spotted 430 | . 17 4 24 . . 7 13 17 17 16 6 12 11 28 6 22 3 12 . 19 15 18 2 40 1 32 4 24 17 43 Peak Tracking Total 21 | . 4 2 4 . . 3 11 6 5 4 2 7 3 9 3 6 3 3 . 3 6 7 1 21 1 6 3 7 4 17 Tactical Retreats 37 | . 1 . 3 . . . 1 3 1 1 . 1 . 4 . 3 1 2 . 1 1 2 . 3 . 2 . 2 . 5 Traps | -11 -10 -10 -9 -9 -9 -8 -8 -8 -8 -8 -7 -7 -7 -7 -6 -6 -6 -6 -5 -5 -4 -4 -3 -3 -3 -3 -3 -3 -2 -2 ------- Run | Yrd Mat Min Mat Min Exi Min Mat Gar Mat Gar Fac Gar Fac Gar Fac Gar Fac Gar Fac Gar Fac Gar Res Gar Res Gar Res Gar Res Tes Traps Triggered 69 | . 2 . 1 . . . . 3 1 6 3 4 2 7 1 8 3 8 . 2 4 4 . 1 . 7 . 1 1 . Indirectly . | . . . . . . . . . . . . . . . . . . . . . . . . . . . . . . . Trap Hack Attempts . | . . . . . . . . . . . . . . . . . . . . . . . . . . . . . . . Triggered . | . . . . . . . . . . . . . . . . . . . . . . . . . . . . . . . Disarmed . | . . . . . . . . . . . . . . . . . . . . . . . . . . . . . . . Reprogrammed . | . . . . . . . . . . . . . . . . . . . . . . . . . . . . . . . Reused . | . . . . . . . . . . . . . . . . . . . . . . . . . . . . . . . Traps Extracted . | . . . . . . . . . . . . . . . . . . . . . . . . . . . . . . . Installed . | . . . . . . . . . . . . . . . . . . . . . . . . . . . . . . . Triggered . | . . . . . . . . . . . . . . . . . . . . . . . . . . . . . . . Machines | -11 -10 -10 -9 -9 -9 -8 -8 -8 -8 -8 -7 -7 -7 -7 -6 -6 -6 -6 -5 -5 -4 -4 -3 -3 -3 -3 -3 -3 -2 -2 ---------- Run | Yrd Mat Min Mat Min Exi Min Mat Gar Mat Gar Fac Gar Fac Gar Fac Gar Fac Gar Fac Gar Fac Gar Res Gar Res Gar Res Gar Res Tes Machines Disabled 40 | . . . 1 . . . . 2 . 4 . 2 . 2 . 3 . 4 . 4 1 4 . 3 . 6 . 2 . 2 Max in Single Turn 1 | . . . . . . . . 1 . 1 . 1 . 1 . 1 . 1 . 1 . 1 . 1 . 1 . 1 . 1 Garrison Relay 24 | . . . . . . . . 2 . 3 . 2 . 2 . 3 . 2 . 3 . 1 . 2 . 2 . 2 . . Machines Repaired . | . . . . . . . . . . . . . . . . . . . . . . . . . . . . . . . Machines Dismantled . | . . . . . . . . . . . . . . . . . . . . . . . . . . . . . . . Machines Sabotaged . | . . . . . . . . . . . . . . . . . . . . . . . . . . . . . . . Overloaded Fab Kills . | . . . . . . . . . . . . . . . . . . . . . . . . . . . . . . . Hacking | -11 -10 -10 -9 -9 -9 -8 -8 -8 -8 -8 -7 -7 -7 -7 -6 -6 -6 -6 -5 -5 -4 -4 -3 -3 -3 -3 -3 -3 -2 -2 --------- Run | Yrd Mat Min Mat Min Exi Min Mat Gar Mat Gar Fac Gar Fac Gar Fac Gar Fac Gar Fac Gar Fac Gar Res Gar Res Gar Res Gar Res Tes Machines Accessed 45 | . 1 . 1 . 1 . 2 1 2 2 1 2 1 3 2 2 3 1 2 1 2 1 3 2 2 3 2 . 2 . Terminals 33 | . 1 . 1 . . . 1 1 1 2 . 2 . 3 1 2 2 1 1 1 1 1 2 2 1 3 1 . 2 . Fabricators . | . . . . . . . . . . . . . . . . . . . . . . . . . . . . . . . Repair Stations . | . . . . . . . . . . . . . . . . . . . . . . . . . . . . . . . Recycling Units . | . . . . . . . . . . . . . . . . . . . . . . . . . . . . . . . Scanalyzers . | . . . . . . . . . . . . . . . . . . . . . . . . . . . . . . . Garrison Access 11 | . . . . . . . 1 . 1 . 1 . 1 . 1 . 1 . 1 . 1 . 1 . 1 . 1 . . . Total Hacks 78 | . 3 . 2 . 1 . 5 1 2 4 1 2 1 3 3 3 9 3 4 1 2 2 4 4 3 6 2 . 7 . Successful 31 | . 2 . . . 1 . 3 . 1 1 1 1 1 1 2 2 3 1 2 . 1 . 1 1 2 1 1 . 2 . Failed 47 | . 1 . 2 . . . 2 1 1 3 . 1 . 2 1 1 6 2 2 1 1 2 3 3 1 5 1 . 5 . Catastrophic 9 | . . . . . . . . 1 . 1 . . . . . . 1 . . . 1 . . 2 . . 1 . 2 . Database Lockouts . | . . . . . . . . . . . . . . . . . . . . . . . . . . . . . . . Manual 24 | . 2 . 2 . 1 . 2 . 1 . . . . . . . 7 . . . . . 3 . 1 . . . 5 . Terminals 66 | . 3 . 2 . . . 4 1 1 4 . 2 . 3 2 3 8 3 3 1 1 2 3 4 2 6 1 . 7 . Fabricators . | . . . . . . . . . . . . . . . . . . . . . . . . . . . . . . . Repair Stations . | . . . . . . . . . . . . . . . . . . . . . . . . . . . . . . . Recycling Units . | . . . . . . . . . . . . . . . . . . . . . . . . . . . . . . . Scanalyzers . | . . . . . . . . . . . . . . . . . . . . . . . . . . . . . . . Garrison Access 11 | . . . . . . . 1 . 1 . 1 . 1 . 1 . 1 . 1 . 1 . 1 . 1 . 1 . . . Terminal Hacks 14 | . 1 . . . 1 . 1 . . 1 . 1 . 1 1 2 . 1 1 . . . . 1 . 1 . . 1 . Prototype ID Bank 1 | . . . . . . . . . . . . . . . 1 . . . . . . . . . . . . . . . Open Door 2 | . . . . . . . . . . . . . . . . 1 . . . . . . . 1 . . . . . . Emergency Access Points 3 | . . . . . . . . . . . . . . 1 . 1 . . . . . . . . . 1 . . . . Unreport Threat 2 | . . . . . . . . . . . . . . . . . . . 1 . . . . . . . . . 1 . Zone Layout 2 | . 1 . . . . . 1 . . . . . . . . . . . . . . . . . . . . . . . Patrol Navigation 2 | . . . . . . . . . . 1 . 1 . . . . . . . . . . . . . . . . . . Security Stations 1 | . . . . . . . . . . . . . . . . . . 1 . . . . . . . . . . . . Derelict Proto ID Bank 1 | . . . . . 1 . . . . . . . . . . . . . . . . . . . . . . . . . Fabricator Hacks . | . . . . . . . . . . . . . . . . . . . . . . . . . . . . . . . Repair Station Hacks . | . . . . . . . . . . . . . . . . . . . . . . . . . . . . . . . Recycling Unit Hacks . | . . . . . . . . . . . . . . . . . . . . . . . . . . . . . . . Scanalyzer . | . . . . . . . . . . . . . . . . . . . . . . . . . . . . . . . Garrison Access Hacks 11 | . . . . . . . 1 . 1 . 1 . 1 . 1 . 1 . 1 . 1 . 1 . 1 . 1 . . . Unlock Access 11 | . . . . . . . 1 . 1 . 1 . 1 . 1 . 1 . 1 . 1 . 1 . 1 . 1 . . . Unauthorized Hacks 6 | . 1 . . . . . 1 . . . . . . . . . 2 . . . . . . . 1 . . . 1 . Terminals 6 | . 1 . . . . . 1 . . . . . . . . . 2 . . . . . . . 1 . . . 1 . Botnet 6 | . 1 . . . . . 1 . . . . . . . . . 2 . . . . . . . 1 . . . 1 . Fabricators . | . . . . . . . . . . . . . . . . . . . . . . . . . . . . . . . Repair Stations . | . . . . . . . . . . . . . . . . . . . . . . . . . . . . . . . Recycling Units . | . . . . . . . . . . . . . . . . . . . . . . . . . . . . . . . Scanalyzers . | . . . . . . . . . . . . . . . . . . . . . . . . . . . . . . . Garrison Access . | . . . . . . . . . . . . . . . . . . . . . . . . . . . . . . . Data Cores Recovered . | . . . . . . . . . . . . . . . . . . . . . . . . . . . . . . . Used . | . . . . . . . . . . . . . . . . . . . . . . . . . . . . . . . Hacking Detections 34 | . 1 . 1 . . . 1 1 1 2 . 2 1 3 1 1 3 1 2 1 1 1 2 2 1 2 1 . 2 . Full Trace Events 1 | . . . . . . . . . . . . . . . . . . . . . . . . . . 1 . . . . Feedback Events . | . . . . . . . . . . . . . . . . . . . . . . . . . . . . . . . Feedback Blocked . | . . . . . . . . . . . . . . . . . . . . . . . . . . . . . . . Robot Schematics Acquired . | . . . . . . . . . . . . . . . . . . . . . . . . . . . . . . . Robots Built . | . . . . . . . . . . . . . . . . . . . . . . . . . . . . . . . Authchips . | . . . . . . . . . . . . . . . . . . . . . . . . . . . . . . . Time . | . . . . . . . . . . . . . . . . . . . . . . . . . . . . . . . Total Robot Build Rating . | . . . . . . . . . . . . . . . . . . . . . . . . . . . . . . . Part Schematics Acquired . | . . . . . . . . . . . . . . . . . . . . . . . . . . . . . . . Parts Built . | . . . . . . . . . . . . . . . . . . . . . . . . . . . . . . . Authchips . | . . . . . . . . . . . . . . . . . . . . . . . . . . . . . . . Time . | . . . . . . . . . . . . . . . . . . . . . . . . . . . . . . . Total Part Build Rating . | . . . . . . . . . . . . . . . . . . . . . . . . . . . . . . . Parts Repaired . | . . . . . . . . . . . . . . . . . . . . . . . . . . . . . . . Time . | . . . . . . . . . . . . . . . . . . . . . . . . . . . . . . . Parts Recycled . | . . . . . . . . . . . . . . . . . . . . . . . . . . . . . . . Recycled Matter . | . . . . . . . . . . . . . . . . . . . . . . . . . . . . . . . Retrieved Matter . | . . . . . . . . . . . . . . . . . . . . . . . . . . . . . . . Retrieved Components . | . . . . . . . . . . . . . . . . . . . . . . . . . . . . . . . Parts Scanalyzed . | . . . . . . . . . . . . . . . . . . . . . . . . . . . . . . . Part Schematics Acquired . | . . . . . . . . . . . . . . . . . . . . . . . . . . . . . . . Parts Damaged . | . . . . . . . . . . . . . . . . . . . . . . . . . . . . . . . Bothacking | -11 -10 -10 -9 -9 -9 -8 -8 -8 -8 -8 -7 -7 -7 -7 -6 -6 -6 -6 -5 -5 -4 -4 -3 -3 -3 -3 -3 -3 -2 -2 ------------ Run | Yrd Mat Min Mat Min Exi Min Mat Gar Mat Gar Fac Gar Fac Gar Fac Gar Fac Gar Fac Gar Fac Gar Res Gar Res Gar Res Gar Res Tes Used RIF Installer 9 | . . . . . . . . 1 . 1 . 1 . 1 . 1 . 1 . 1 . . . . . 1 . 1 . . Hotswap 1 | . . . . . . . . . . . . . . . . 1 . . . . . . . . . . . . . . Signal Jammer 1 | . . . . . . . . . . . . . . . . . . . . . . . . . . . . 1 . . Zone Cloak 2 | . . . . . . . . . . . . . . . . . . 1 . . . . . . . 1 . . . . Robot Detection 1 | . . . . . . . . . . 1 . . . . . . . . . . . . . . . . . . . . Alert ID Control 1 | . . . . . . . . . . . . 1 . . . . . . . . . . . . . . . . . . Structural Interface 1 | . . . . . . . . . . . . . . 1 . . . . . . . . . . . . . . . . Autoassimilate 1 | . . . . . . . . . . . . . . . . . . . . 1 . . . . . . . . . . Robots Hacked 128 | . . . . . . . . . 4 . 1 5 4 10 1 6 1 5 . 14 9 7 2 4 1 17 2 13 10 12 Non-combat 3 | . . . . . . . . . . . . . . . . . . . . . . . . . . . . . 3 . Combat 125 | . . . . . . . . . 4 . 1 5 4 10 1 6 1 5 . 14 9 7 2 4 1 17 2 13 7 12 Autoassimilated 20 | . . . . . . . . . . . . . . . . . . . . 5 2 3 . . . 4 . 2 1 3 Robot Hacks Applied 113 | . . . . . . . . . 5 . 1 5 4 10 1 6 1 6 . 9 8 5 2 5 1 13 2 11 9 9 parse_system 1 | . . . . . . . . . . . . . . . . . . . . . 1 . . . . . . . . . mark_security 1 | . . . . . . . . . . . . . . . . . . . . . . . . . . . . . 1 . relay_feed 1 | . . . . . . . . . . . . . . . . . . . . . . . . . . . . . 1 . link_fov 1 | . . . . . . . . . . . . . . . . . . . . . . . . . . . . . 1 . amplify_resonance 11 | . . . . . . . . . . . . 2 . . . 1 . . . . . 1 . . . . . 2 1 4 reboot_system 2 | . . . . . . . . . . . . . 1 . . . . . . . . . . . . . . . 1 . overwrite_iff 44 | . . . . . . . . . 4 . 1 2 . 4 . . . 2 . 6 3 4 . 3 . 5 . 5 . 5 streamctrl_high 4 | . . . . . . . . . . . . . 1 . . 2 . 1 . . . . . . . . . . . . formatsys_high 48 | . . . . . . . . . 1 . . 1 2 6 1 3 1 3 . 3 4 . 2 2 1 8 2 4 4 . Relay Couplers Released 90 | . . . . . . . . 7 . 12 . 8 . 7 . 13 . 6 . 12 . 3 . 6 . 7 . 9 . . Machine Destruction 90 | . . . . . . . . 7 . 12 . 8 . 7 . 13 . 6 . 12 . 3 . 6 . 7 . 9 . . Attached 56 | . . . . . . . . . 2 2 2 2 2 6 1 8 1 2 . 5 2 2 1 3 . 5 1 4 4 1 Fabnet Peak Effective % . | . . . . . . . . . . . . . . . . . . . . . . . . . . . . . . . Robots Rewired 18 | . . . . . . . . . . . . . . . . 10 . 2 . 2 . 2 . . . 2 . . . . Allies Hacked 4 | . . . . . . . . . . . . . . . . . . . . 1 1 1 . . . . . 1 . . Hacks Repelled . | . . . . . . . . . . . . . . . . . . . . . . . . . . . . . . . Allies | -11 -10 -10 -9 -9 -9 -8 -8 -8 -8 -8 -7 -7 -7 -7 -6 -6 -6 -6 -5 -5 -4 -4 -3 -3 -3 -3 -3 -3 -2 -2 -------- Run | Yrd Mat Min Mat Min Exi Min Mat Gar Mat Gar Fac Gar Fac Gar Fac Gar Fac Gar Fac Gar Fac Gar Res Gar Res Gar Res Gar Res Tes Total Allies 141 | . . 5 . . . . . . 4 . 1 3 3 10 1 17 1 7 . 16 9 8 2 6 1 20 2 12 5 8 Largest Group 9 | . . 5 5 4 1 . . . 1 . 1 1 2 2 1 9 1 3 1 7 4 8 2 3 1 8 7 9 6 4 Highest-Rated Group 490 | . . 96 96 80 25 . . . 15 . 32 26 24 32 32 413 40 119 119 264 154 490 128 175 64 429 387 473 407 279 Highest-Rated Ally 119 | . . 31 31 31 25 . . . 15 . 32 26 20 32 32 62 40 119 119 119 49 119 64 64 64 64 64 77 77 89 Total Orders . | . . . . . . . . . . . . . . . . . . . . . . . . . . . . . . . Ally Attacks 699 | . . . 71 . . . . . 16 . 2 9 17 21 4 122 . 40 . 65 48 34 . 35 . 77 19 68 28 23 Total Damage 17800 | . . . 706 . . . . . 135 . 91 177 244 238 101 3270 . 1251 . 1901 1399 1191 . 1353 . 1538 686 1546 1163 810 Kills 105 | . . . 13 . . . . . 3 . . 2 2 2 . 13 . 6 . 7 10 8 . 7 . 10 3 9 6 4 Allies Corrupted 11 | . . . 1 1 . . . . . . . . . 1 . . . . . . 1 . . . . . . . 2 5 Allies Melted 6 | . . . . . . . . . . . . . . . . 1 . . . 1 . . . 2 . 1 . 1 . . Intel | -11 -10 -10 -9 -9 -9 -8 -8 -8 -8 -8 -7 -7 -7 -7 -6 -6 -6 -6 -5 -5 -4 -4 -3 -3 -3 -3 -3 -3 -2 -2 ------- Run | Yrd Mat Min Mat Min Exi Min Mat Gar Mat Gar Fac Gar Fac Gar Fac Gar Fac Gar Fac Gar Fac Gar Res Gar Res Gar Res Gar Res Tes Robot Analysis Total . | . . . . . . . . . . . . . . . . . . . . . . . . . . . . . . . Derelict Logs Recovered 4 | . . 2 . 2 . . . . . . . . . . . . . . . . . . . . . . . . . . Drone Launches . | . . . . . . . . . . . . . . . . . . . . . . . . . . . . . . . Drone Recoveries . | . . . . . . . . . . . . . . . . . . . . . . . . . . . . . . . Exploration | -11 -10 -10 -9 -9 -9 -8 -8 -8 -8 -8 -7 -7 -7 -7 -6 -6 -6 -6 -5 -5 -4 -4 -3 -3 -3 -3 -3 -3 -2 -2 ------------- Run | Yrd Mat Min Mat Min Exi Min Mat Gar Mat Gar Fac Gar Fac Gar Fac Gar Fac Gar Fac Gar Fac Gar Res Gar Res Gar Res Gar Res Tes Turns Passed 22528 | 61 670 602 564 526 275 292 296 1417 638 1165 1260 935 811 1883 915 1447 418 1007 252 1258 552 797 372 408 152 1077 227 1143 856 252 Spaces Moved 12134 | 52 499 466 343 391 203 155 131 712 290 485 752 516 489 777 460 653 251 459 149 572 254 375 229 255 129 604 167 583 591 142 Core 32 | 2 . . . . . . . . . . . . . 30 . . . . . . . . . . . . . . . . Treads 628 | 3 . . . . . . . 342 283 . . . . . . . . . . . . . . . . . . . . . Legs 829 | . . . . . . . . . . . . . . 435 394 . . . . . . . . . . . . . . . Wheels 10587 | 47 499 466 343 391 203 155 131 370 7 485 752 516 489 254 66 653 251 459 149 572 254 375 229 255 129 604 167 583 591 142 Hover . | . . . . . . . . . . . . . . . . . . . . . . . . . . . . . . . Flight 58 | . . . . . . . . . . . . . . 58 . . . . . . . . . . . . . . . . Fastest Speed 26 | 50 95 110 125 125 125 125 115 115 160 140 135 145 145 26 145 145 160 145 145 160 175 175 110 111 111 110 111 111 110 110 Average Speed 145 | 94 97 110 125 125 125 129 129 151 161 185 147 159 145 201 183 156 160 159 159 170 175 175 139 111 111 110 111 111 110 110 Slowest Speed 1500 | 160 110 110 125 125 125 130 130 240 215 215 230 230 145 1500 190 160 160 160 160 175 175 175 175 111 111 111 111 111 111 130 Overloaded Moves 15 | . . . . . . . . . . . . . . 15 . . . . . . . . . . . . . . . . Propulsion Burnouts . | . . . . . . . . . . . . . . . . . . . . . . . . . . . . . . . Robots Hopped . | . . . . . . . . . . . . . . . . . . . . . . . . . . . . . . . Cave-ins Triggered . | . . . . . . . . . . . . . . . . . . . . . . . . . . . . . . . Exploration Rate (%) 39 | 4 84 97 43 82 60 50 17 56 26 61 23 40 17 70 13 77 9 46 5 68 10 52 8 54 6 67 9 39 17 19 Regions Visited 30 Branch Regions 5 Pre-discovered Areas 1 | . . 1 . . . . . . . . . . . . . . . . . . . . . . . . . . . . Known Exits Taken 12 | . . 1 . . . . 1 . 1 . 1 . 1 . 1 . 1 . 1 . 1 . 1 . 1 . 1 . . . Unknown Exits Taken 7 | 1 1 . 1 1 1 1 . . . . . . . . . . . . . . . . . . . . . . 1 . Scrap Searched 5 | . . 2 . 3 . . . . . . . . . . . . . . . . . . . . . . . . . . Spaces Dug 43 | . . . . . . . . . . . . . . . . . . 7 . . . . 1 2 . 9 . 24 . . Terrain Destroyed 100 | . . . . . . . . . . . 3 . 4 . . 9 . 12 . 12 1 1 1 3 . 15 1 33 3 2 Melee . | . . . . . . . . . . . . . . . . . . . . . . . . . . . . . . . Projectile 100 | . . . . . . . . . . . 3 . 4 . . 9 . 12 . 12 1 1 1 3 . 15 1 33 3 2 AOE . | . . . . . . . . . . . . . . . . . . . . . . . . . . . . . . . Terrain Rammed . | . . . . . . . . . . . . . . . . . . . . . . . . . . . . . . . Walls Destroyed . | . . . . . . . . . . . . . . . . . . . . . . . . . . . . . . . Machines Disabled . | . . . . . . . . . . . . . . . . . . . . . . . . . . . . . . . Actions | -11 -10 -10 -9 -9 -9 -8 -8 -8 -8 -8 -7 -7 -7 -7 -6 -6 -6 -6 -5 -5 -4 -4 -3 -3 -3 -3 -3 -3 -2 -2 --------- Run | Yrd Mat Min Mat Min Exi Min Mat Gar Mat Gar Fac Gar Fac Gar Fac Gar Fac Gar Fac Gar Fac Gar Res Gar Res Gar Res Gar Res Tes Total 16216 | 60 620 529 437 430 225 203 249 942 446 713 896 615 589 1017 524 1025 264 689 160 807 347 505 278 361 137 955 201 1013 781 198 Wait 2480 | . 42 48 49 36 20 22 110 90 112 114 108 37 79 83 42 208 7 140 3 149 59 87 28 66 7 194 15 356 161 8 Move 12113 | 51 498 465 342 390 202 154 130 711 290 484 752 515 489 776 459 652 251 458 149 571 254 374 229 254 129 603 167 582 590 142 Hop . | . . . . . . . . . . . . . . . . . . . . . . . . . . . . . . . Pick Up 177 | 3 14 2 9 1 1 1 3 15 11 13 5 10 2 22 6 19 1 4 . 7 1 1 2 4 . 13 2 3 1 1 Fast Attach 87 | 6 1 . 1 . . 1 1 4 . 1 4 . . 22 1 6 1 2 4 4 4 1 7 2 . 3 3 3 2 3 Attach 77 | . 2 1 2 . . 3 1 15 1 . 4 7 . 6 2 4 . 2 . 3 2 . 2 3 . 4 2 . 2 9 Detach 7 | . . . . . . . . . . . 1 1 . 2 1 . . . . . . . 1 1 . . . . . . Swap 83 | . 8 . 5 1 . . . 7 10 6 7 1 4 4 1 9 1 1 . 2 . 2 . 1 . 3 1 3 6 . Drop 133 | . 14 . 7 2 2 . . 7 7 7 8 4 3 8 . 23 1 . 3 5 2 1 5 4 . 7 3 4 3 3 Fire 626 | . 41 13 22 . . 22 4 69 10 40 7 10 4 27 4 56 2 34 1 44 17 15 4 25 1 56 8 54 16 20 Melee 43 | . . . . . . . . . 5 . . 6 . 20 . . . . . . . . . . . . . . . 12 Ram . | . . . . . . . . . . . . . . . . . . . . . . . . . . . . . . . Kick . | . . . . . . . . . . . . . . . . . . . . . . . . . . . . . . . Crush . | . . . . . . . . . . . . . . . . . . . . . . . . . . . . . . . Escape Stasis 359 | . . . . . . . . 24 . 48 . 24 8 47 8 48 . 48 . 16 8 24 . . . 48 . 8 . . Rewire 31 | . . . . . . . . . . . . . . . . . . . . 6 . . . 1 . 24 . . . . Trap . | . . . . . . . . . . . . . . . . . . . . . . . . . . . . . . . Miscellaneous . | . . . . . . . . . . . . . . . . . . . . . . . . . . . . . . . Route ------- -11/Scrapyard -10/Materials (discovered 4 exits: *Mat x2 / [*Min x2]) -10/Mines (discovered 2 exits: *Mat x2) -9/Materials (discovered 3 exits: *Mat x2 / [*Min]) -9/Mines (discovered 3 exits: *Mat x2 / *Exi) -9/Exiles -8/Mines -8/Materials -8/Garrison (discovered 2 exits: *Mat x2) -8/Materials -8/Garrison (discovered 2 exits: *Fac x2) -7/Factory (discovered 4 exits: *Fac x2 / Sto / Gar) -7/Garrison -7/Factory (discovered 2 exits: *Fac / Gar) -7/Garrison (discovered 3 exits: *Fac x3) -6/Factory (discovered 3 exits: *Fac x2 / Gar) -6/Garrison (discovered 2 exits: *Fac x2) -6/Factory -6/Garrison -5/Factory -5/Garrison (discovered 2 exits: *Fac x2) -4/Factory (discovered 2 exits: *Res / Gar) -4/Garrison -3/Research -3/Garrison -3/Research -3/Garrison (discovered 2 exits: *Res x2) -3/Research -3/Garrison -2/Research (discovered 2 exits: [*Acc] / [*Tes]) -2/Testing History --------- Turn | Location | Event 27 | -11/Scrapyard | Discovered new exit (range 15) 62 | -11/Scrapyard | Entered Materials 225 | -10/Materials | Discovered new exit (range 19) 314 | -10/Materials | Build established: Mutant 453 | -10/Materials | Discovered new exit (range 10) 665 | -10/Materials | Discovered new exit (range 11) 689 | -10/Materials | Discovered new exit (range 8) 732 | -10/Materials | Entered Mines 741 | -10/Mines | Identified exit to Materials 775 | -10/Mines | Learned 4 Materials zone layouts 1117 | -10/Mines | Assisted by bots powering up and referring to "LRC-V3" 1313 | -10/Mines | Discovered exit to Materials (range 5) 1314 | -10/Mines | Learned location of Storage (-7) 1334 | -10/Mines | Entered Materials 1334 | -9/Materials | Accompanied by 5 allies 1334 | -9/Materials | Evolved 2 slots: Utility x1, Weapon x1 1339 | -9/Materials | Led the pair of lost Derelicts to an unsafe place 1572 | -9/Materials | Discovered new exit (range 6) 1741 | -9/Materials | Discovered new exit (range 8) 1819 | -9/Materials | Discovered new exit (range 13) 1898 | -9/Materials | Entered Mines 1898 | -9/Mines | Accompanied by 4 allies 1911 | -9/Mines | Learned Materials garrison access intel 1936 | -9/Mines | Discovered new exit (range 8) 1987 | -9/Mines | Build established: Tank 2139 | -9/Mines | Lost 3 allies 2180 | -9/Mines | Discovered new exit (range 5) 2208 | -9/Mines | Found a hidden stash of uninstalled traps 2273 | -9/Mines | Found DCF Scrap (14 items) 2391 | -9/Mines | Deemed a non-threat by the Exiles lab entrance 2391 | -9/Mines | Discovered new exit (range 5) 2424 | -9/Mines | Entered Exiles 2424 | -9/Exiles | Accompanied by 1 ally 2459 | -9/Exiles | Met 8R-AWN 2479 | -9/Exiles | Met EX-HEX 2515 | -9/Exiles | Met EX-BIN 2530 | -9/Exiles | Aligned with FarCom system 2531 | -9/Exiles | Given EX-Vault access code 2560 | -9/Exiles | Opened EX-Vault 2567 | -9/Exiles | Found AWS/Thermal 2592 | -9/Exiles | Warned to stay clear of 0b10 Research branches 2626 | -9/Exiles | Met EX-DEC 2671 | -9/Exiles | Discovered new exit (range 10) 2699 | -9/Exiles | Left Exiles lab with AWS/Thermal 2699 | -9/Exiles | Entered Mines 2776 | -8/Mines | Lost 3 parts (1n1u1w) 2985 | -8/Mines | Discovered new exit (range 5) 2991 | -8/Mines | Entered Materials 2991 | -8/Materials | Evolved 2 slots: Utility x2 2992 | -8/Materials | Loaded intel: 1 garrison access location 2997 | -8/Materials | Build established: Skirmisher 3238 | -8/Materials | Garrison activated, responded to threat 3277 | -8/Materials | Identified exit to Garrison 3287 | -8/Materials | Entered Garrison 3315 | -8/Garrison | Lost 7 parts (1p1n2u3w) 3328 | -8/Garrison | Installed Relay Interface Framework 3371 | -8/Garrison | Triggered checkpoint 3483 | -8/Garrison | Garrison Relay disabled 3592 | -8/Garrison | Build established: Gunner 3601 | -8/Garrison | Triggered checkpoint 3802 | -8/Garrison | Discovered new exit (range 8) 3857 | -8/Garrison | Triggered checkpoint 3895 | -8/Garrison | Garrison Relay disabled 4085 | -8/Garrison | Triggered checkpoint 4226 | -8/Garrison | Build established: Bothacker-Gunner 4601 | -8/Garrison | Core integrity fell below 50% 4635 | -8/Garrison | Lost 5 parts (1p1n1u2w) 4671 | -8/Garrison | Discovered new exit (range 9) 4704 | -8/Garrison | Entered Materials 5246 | -8/Materials | Build established: Bothacker-Skirmisher 5342 | -8/Materials | Identified exit to Garrison 5342 | -8/Materials | Entered Garrison 5450 | -8/Garrison | Triggered checkpoint 5486 | -8/Garrison | Garrison Relay disabled 5601 | -8/Garrison | Expanded RIF knowledge: Robot Detection 5665 | -8/Garrison | Garrison Relay disabled 5908 | -8/Garrison | Triggered checkpoint 6001 | -8/Garrison | Discovered new exit (range 8) 6088 | -8/Garrison | Triggered checkpoint 6138 | -8/Garrison | Garrison Relay disabled 6204 | -8/Garrison | Triggered checkpoint 6336 | -8/Garrison | Triggered checkpoint 6451 | -8/Garrison | Core integrity fell below 20% 6478 | -8/Garrison | Discovered new exit (range 12) 6507 | -8/Garrison | Entered Factory 6507 | -7/Factory | Evolved 2 slots: Utility x2 6508 | -7/Factory | Identified exit to Storage 6630 | -7/Factory | Discovered new exit (range 16) 6651 | -7/Factory | Discovered new exit (range 5) 7767 | -7/Factory | Identified exit to Garrison 7767 | -7/Factory | Entered Garrison 7841 | -7/Garrison | Triggered checkpoint 7844 | -7/Garrison | Build established: Bothacker-Mutant 7878 | -7/Garrison | Garrison Relay disabled 8091 | -7/Garrison | Triggered checkpoint 8167 | -7/Garrison | Discovered new exit (range 13) 8211 | -7/Garrison | Triggered checkpoint 8275 | -7/Garrison | Expanded RIF knowledge: Alert ID Control 8531 | -7/Garrison | Build established: Bothacker-Skirmisher 8641 | -7/Garrison | Garrison Relay disabled 8702 | -7/Garrison | Entered Factory 9216 | -7/Factory | Discovered new exit (range 16) 9513 | -7/Factory | Identified exit to Garrison 9513 | -7/Factory | Entered Garrison 9593 | -7/Garrison | Triggered checkpoint 9635 | -7/Garrison | Garrison Relay disabled 9949 | -7/Garrison | Triggered checkpoint 9999 | -7/Garrison | Lost 5 allies 10023 | -7/Garrison | Triggered checkpoint 10027 | -7/Garrison | AWS/Thermal suddenly broke down 10100 | -7/Garrison | Core integrity fell below 50% 10131 | -7/Garrison | Lost 6 parts (1n2u3w) 10180 | -7/Garrison | Core integrity fell below 20% 10212 | -7/Garrison | Lost 7 parts (3n1u3w) 10503 | -7/Garrison | Triggered checkpoint 10586 | -7/Garrison | Discovered new exit (range 14) 10709 | -7/Garrison | Garrison Relay disabled 11110 | -7/Garrison | Discovered new exit (range 8) 11239 | -7/Garrison | Triggered checkpoint 11249 | -7/Garrison | Triggered checkpoint 11334 | -7/Garrison | Discovered new exit (range 9) 11360 | -7/Garrison | Expanded RIF knowledge: Structural Interface 11396 | -7/Garrison | Entered Factory 11396 | -6/Factory | Evolved 2 slots: Propulsion x2 11593 | -6/Factory | Discovered new exit (range 16) 11645 | -6/Factory | Build established: Botlord-Skirmisher 12117 | -6/Factory | Discovered new exit (range 11) 12296 | -6/Factory | Identified exit to Garrison 12311 | -6/Factory | Entered Garrison 12412 | -6/Garrison | Lost 3 parts (1p1n1u) 12539 | -6/Garrison | Triggered checkpoint 12549 | -6/Garrison | Garrison Relay disabled 12857 | -6/Garrison | Spotted B-75 Beast 12882 | -6/Garrison | Allies destroyed B-75 Beast 12893 | -6/Garrison | Triggered checkpoint 12909 | -6/Garrison | Triggered checkpoint 12910 | -6/Garrison | Lost 4 allies 12993 | -6/Garrison | Discovered new exit (range 2) 13013 | -6/Garrison | Found embedded Infiltrators 13017 | -6/Garrison | Triggered checkpoint 13055 | -6/Garrison | Garrison Relay disabled 13119 | -6/Garrison | Spotted B-75 Beast 13136 | -6/Garrison | Allies destroyed B-75 Beast 13198 | -6/Garrison | Found Adv. Powered Armor 13327 | -6/Garrison | Triggered checkpoint 13403 | -6/Garrison | Lost 9 allies 13590 | -6/Garrison | Expanded RIF knowledge: Hotswap 13621 | -6/Garrison | Discovered new exit (range 12) 13637 | -6/Garrison | Triggered checkpoint 13637 | -6/Garrison | Garrison Relay disabled 13758 | -6/Garrison | Entered Factory 14176 | -6/Factory | Identified exit to Garrison 14176 | -6/Factory | Entered Garrison 14176 | -6/Garrison | Accompanied by 1 ally 14238 | -6/Garrison | Triggered checkpoint 14283 | -6/Garrison | Garrison Relay disabled 14430 | -6/Garrison | Learned Factory security intel 14619 | -6/Garrison | Triggered checkpoint 14652 | -6/Garrison | Triggered checkpoint 14721 | -6/Garrison | Spotted B-75 Beast 14838 | -6/Garrison | Spotted Striker 14858 | -6/Garrison | Rewired Striker 14872 | -6/Garrison | Destroyed Striker 14888 | -6/Garrison | Rewired Executioner 14934 | -6/Garrison | Discovered new exit (range 7) 14972 | -6/Garrison | Triggered checkpoint 14990 | -6/Garrison | Expanded RIF knowledge: Zone Cloak 15050 | -6/Garrison | Garrison Relay disabled 15183 | -6/Garrison | Entered Factory 15183 | -5/Factory | Accompanied by 1 ally 15183 | -5/Factory | Evolved 2 slots: Power x1, Utility x1 15435 | -5/Factory | Identified exit to Garrison 15435 | -5/Factory | Entered Garrison 15435 | -5/Garrison | Accompanied by 1 ally 15455 | -5/Garrison | Expanded RIF knowledge: Autoassimilate 15495 | -5/Garrison | Garrison Relay disabled 15889 | -5/Garrison | Triggered checkpoint 15994 | -5/Garrison | Spotted B-75 Beast 16001 | -5/Garrison | Triggered checkpoint 16025 | -5/Garrison | Allies destroyed B-75 Beast 16027 | -5/Garrison | Triggered checkpoint 16069 | -5/Garrison | Lost 6 allies 16201 | -5/Garrison | Discovered new exit (range 10) 16251 | -5/Garrison | Triggered checkpoint 16297 | -5/Garrison | Garrison Relay disabled 16449 | -5/Garrison | Spotted B-75 Beast 16593 | -5/Garrison | Triggered checkpoint 16624 | -5/Garrison | Garrison Relay disabled 16677 | -5/Garrison | Discovered new exit (range 4) 16693 | -5/Garrison | Entered Factory 16693 | -4/Factory | Accompanied by 2 allies 16693 | -4/Factory | Evolved 2 slots: Propulsion x1, Utility x1 16835 | -4/Factory | Discovered new exit (range 9) 17105 | -4/Factory | Garrison activated, responded to threat 17121 | -4/Factory | Found Prototype Processor 17121 | -4/Factory | Identified Exp. Signal Interpreter 17241 | -4/Factory | Identified exit to Garrison 17245 | -4/Factory | Entered Garrison 17245 | -4/Garrison | Accompanied by 3 allies 17277 | -4/Garrison | Rewired Executioner 17281 | -4/Garrison | Rewired Executioner 17380 | -4/Garrison | Triggered checkpoint 17439 | -4/Garrison | Lost 4 allies 17447 | -4/Garrison | Garrison Relay disabled 17525 | -4/Garrison | Heavy support dispatched to Research 17550 | -4/Garrison | Lost 3 allies 17630 | -4/Garrison | Spotted B-86 Titan 17689 | -4/Garrison | Spotted B-86 Titan 17701 | -4/Garrison | Destroyed Executioner 17893 | -4/Garrison | Triggered checkpoint 18009 | -4/Garrison | Discovered new exit (range 15) 18042 | -4/Garrison | Entered Research 18042 | -3/Research | Evolved 2 slots: Propulsion x1, Utility x1 18408 | -3/Research | Identified exit to Garrison 18414 | -3/Research | Entered Garrison 18414 | -3/Garrison | Accompanied by 2 allies 18416 | -3/Garrison | Triggered checkpoint 18427 | -3/Garrison | Assembled breached garrison interior 18533 | -3/Garrison | Garrison Relay disabled 18562 | -3/Garrison | Rescued a captive Derelict 18567 | -3/Garrison | Rescued a captive Derelict 18691 | -3/Garrison | Garrison Relay disabled 18694 | -3/Garrison | Lost 3 allies 18808 | -3/Garrison | Discovered new exit (range 14) 18822 | -3/Garrison | Entered Research 18909 | -3/Research | Build established: Botlord-Mutant 18974 | -3/Research | Identified exit to Garrison 18974 | -3/Research | Entered Garrison 18974 | -3/Garrison | Accompanied by 1 ally 19084 | -3/Garrison | Triggered checkpoint 19107 | -3/Garrison | Garrison Relay disabled 19255 | -3/Garrison | Lost 5 allies 19384 | -3/Garrison | Triggered checkpoint 19410 | -3/Garrison | Triggered checkpoint 19410 | -3/Garrison | Triggered checkpoint 19570 | -3/Garrison | Discovered new exit (range 12) 19581 | -3/Garrison | Garrison Relay disabled 19832 | -3/Garrison | Lost 3 allies 20012 | -3/Garrison | Expanded RIF knowledge: Zone Cloak 20016 | -3/Garrison | Discovered new exit (range 12) 20051 | -3/Garrison | Entered Research 20051 | -3/Research | Accompanied by 7 allies 20051 | -3/Research | Spotted B-86 Titan 20056 | -3/Research | Allies destroyed B-86 Titan 20131 | -3/Research | Build established: Botlord-Skirmisher 20265 | -3/Research | Identified exit to Garrison 20278 | -3/Research | Entered Garrison 20278 | -3/Garrison | Accompanied by 7 allies 20294 | -3/Garrison | Triggered checkpoint 20342 | -3/Garrison | Triggered checkpoint 20371 | -3/Garrison | Lost 7 allies 20406 | -3/Garrison | Expanded RIF knowledge: Signal Jamming 20427 | -3/Garrison | Garrison Relay disabled 20458 | -3/Garrison | Garrison Relay disabled 20531 | -3/Garrison | Spotted B-86 Titan 20531 | -3/Garrison | Spotted B-86 Titan 20591 | -3/Garrison | Lost 6 allies 20699 | -3/Garrison | Spotted B-86 Titan 20706 | -3/Garrison | Triggered checkpoint 20708 | -3/Garrison | Triggered checkpoint 20739 | -3/Garrison | Lost 3 allies 20935 | -3/Garrison | System corruption reached 10% 21345 | -3/Garrison | Found embedded Infiltrators 21402 | -3/Garrison | Discovered new exit (range 12) 21421 | -3/Garrison | Entered Research 21421 | -2/Research | Accompanied by 1 ally 21421 | -2/Research | Evolved 2 slots: Utility x2 21628 | -2/Research | Discovered new exit (range 23) 22113 | -2/Research | Discovered new exit (range 22) 22277 | -2/Research | Entered Testing 22277 | -2/Testing | Accompanied by 4 allies 22278 | -2/Testing | Maximum security lockdown engaged 22320 | -2/Testing | Lost 5 allies 22396 | -2/Testing | Found Prototype Device 22396 | -2/Testing | Identified 2N-1CE's Frost Array 22428 | -2/Testing | Spotted Executioner 22456 | -2/Testing | Lost 5 allies 22459 | -2/Testing | Lost 3 parts (1u2w) 22492 | -2/Testing | System corruption reached 10% 22519 | -2/Testing | Lost 5 parts (1p2n1u1w) 22529 | -2/Testing | Self-destructed Last Messages --------------- 22518_ I-47 Archangel distress signal jammed. 22520_ Relay Coupler [Grunt] destroyed. 22520_ Penetrated by Slug. 22520_ Slug penetrates Wall. 22520_ I-47 Archangel distress signal jammed. 22521_ Hdn. Centrium Wheel destroyed. 22521_ I-47 Archangel distress signal jammed. 22522_ Relay Coupler [Specialist] destroyed. 22522_ I-47 Archangel distress signal jammed. 22524_ G-73 Enforcer suffers critical hit (Impale). 22524_ G-73 Enforcer destroyed. 22525_ I-47 Archangel distress signal jammed. 22526_ Penetrated by Slug. 22526_ Enh. Force Lance destroyed. 22526_ Slug penetrates Earth. 22526_ I-47 Archangel distress signal jammed. 22528_ Hdn. Centrium Wheel destroyed. 22528_ I-47 Archangel distress signal jammed. 22529_ Penetrated by Slug. 22529_ I-47 Archangel distress signal jammed. Map ----- +----------------------------------------------------+ | # ??" " | | # ??? # | | # """ # | | # #### ###########"## | | # #??# # ]* | | # #??# # " *! | | # #??# # "" """ | | # #??# #??" " """" | | # b ???# #??""" "" | | ?? ?????# #???? | | ???#/######## #??? | | ???# #??########### | | ???#i##########????????????? | | ???# #?????????????????????? | | ???#h#?????????????????????? | | ???# #?????????????????????? | | ???# #?????????????????????? | | ???# #?????????????????????? | | ???# #?????????????????????? | | ???#g#?????????????????????? | | ???#h#?????????????????????? | | ???#b#????????????K????????? | | ???#g#?????????????????????? | | ??##i#?????????????????????? | | ??#%E##???????????K????????? | | ??#@%!#????????????????????? | | ?#;!]!#????????7???????????? | | ? #;###????????????????????? | | ####??????????????????????? | | ???????????????????????????? | | ???????????????????????????? | | ???????????????????????????? | | ???????????????????????????? | | ???????????????????????????? | | | | | | | | | | | | | | | | | | | | | | | | | | | | | | | | | +----------------------------------------------------+ Best States ------------- Heat Dissipation 149 Energy Generation 47 Energy Capacity 1200 Matter Stores 300 Matter Capacity 300 Sight Range 18 Terrain Scan Range 24 Terrain Scan Density 210 Armor Coverage 600 Utility Shielding 66 Phase Shifting 10 Evasion (%) 63 Targeting Accuracy 24 Recoil Reduction 3 Kinecelleration 30 Offensive Hacking 10 Relay Coupler Types 8 Relay Coupler Value 274 Item Schematics ----------------- None Robot Schematics ------------------ None Fabricated ------------ Nothing Alien Tech Used ----------------- None Achievements -------------- Beloved Challenges ------------ None Game ------ Seed DimensionalTiamatTrident Manual? 0 Play Time 02:51:32 Cumulative 248.1 hours Start 2024.10.29 @ 21:56:25 End 2024.10.31 @ 20:34:57 Sessions 9 Manual Loads 0 Difficulty Rogue Special Mode None Game No. 306 Rogue 262 Adventurer 4 Explorer 40 Win Type - Total 12 Types 9/1/1/1/0/0/0/0/0 Lore% 50 Gallery% 72 Achievement% 63 Wizard Run 0 Options --------- Layout 0 ASCII 0 Keyboard 0 Movement Mouse Keybinds 0 Fullscreen 2 Font 24/Smallcaps Map View 76x50 Zoom Use 0% Tactical HUD 1 Map Filters NONE Filters NONE Steam 1 RUN: da0bfd97-2a15-4b51-95c9-2ce39033994d